bitfinex/quotes_ETHUSD_20250813
["timestamp","ask_amount","ask_price","bid_price","bid_amount"]
[1755072729513,0.002,4629.2,4627.9,0.1646]
[1755072729698,0.002,4628.6,4628.0,3.32]
[1755072729895,0.002,4628.6,4628.1,0.1646]
[1755072730104,0.002,4628.6,4628.2,0.34846]
[1755072730405,0.002,4628.6,4628.3,3.32]
[1755072730709,0.002,4628.6,4628.3,3.4846]
[1755072730913,0.002,4628.6,4628.4,0.1646]
[1755072731303,0.002,4628.6,4628.3,3.32]
[1755072731625,0.002,4628.6,4628.4,0.531446]
[1755072732009,0.002,4628.6,4628.5,0.1646]
[1755072733308,0.002,4628.6,4628.5,3.32]
[1755072734574,1.5004,4628.6,4628.5,3.32]
[1755072734869,1.5004,4628.6,4626.5,0.001]
[1755072734870,0.55,4628.5,4626.5,0.001]
[1755072735174,0.108,4627.7,4627.1,0.108]
[1755072735330,0.108,4627.7,4627.3,5.177]
[1755072735531,0.108,4627.7,4627.4,3.319]
[1755072735739,14.5,4628.4,4627.5,0.108]
[1755072735740,0.108,4628.2,4627.5,0.108]
[1755072735968,0.108,4628.2,4627.6,0.87686]
[1755072736260,0.108,4628.2,4627.7,0.1646]
[1755072736459,0.108,4628.4,4627.8,3.427]
[1755072736621,0.108,4628.4,4627.9,0.1646]
[1755072736953,0.108,4628.4,4627.8,3.427]
[1755072737122,0.108,4628.4,4627.9,0.430386]
[1755072737320,0.55,4628.2,4627.6,0.87686]
[1755072737550,0.108,4627.9,4627.7,3.319]
[1755072738649,0.108,4628.2,4627.7,3.319]
[1755072738850,0.108,4628.2,4627.8,0.1646]
[1755072739037,0.108,4628.2,4627.7,3.319]
[1755072739038,0.108,4628.2,4627.9,0.1646]
[1755072739258,0.108,4628.2,4628.0,3.83196]
[1755072739756,0.002,4628.6,4628.1,0.2726]
[1755072740143,0.002,4628.6,4628.1,0.108]
[1755072740316,0.002,4628.6,4628.2,0.1646]
[1755072740520,0.002,4628.6,4628.5,0.108]
[1755072740720,0.002,4628.6,4628.5,0.46716]
[1755072741170,0.002,4628.6,4628.5,0.63176]
[1755072743258,0.4965,4630.7,4628.5,0.63176]
[1755072743259,0.4965,4632.1,4628.6,0.55]
[1755072743462,0.69505743,4633.6,4630.2,35.23715315]
[1755072743776,0.4519,4632.9,4630.3,5.68915568]
[1755072743940,14.5,4633.2,4630.4,0.1646]
[1755072743941,0.4519,4632.6,4630.4,0.1646]
[1755072744143,14.5,4633.2,4630.5,3.318]
[1755072744144,0.9484,4632.3,4630.5,3.318]
[1755072744437,0.9484,4632.3,4630.6,0.1646]
[1755072744640,0.11234273,4633.9,4630.3,2.20655568]
[1755072744641,0.4519,4633.1,4630.7,3.4826]
[1755072744839,0.9955,4632.4,4630.7,3.4826]
[1755072745278,14.5,4632.3,4630.7,0.1646]
[1755072745445,0.4519,4632.2,4632.1,5.177]
[1755072745641,0.4519,4632.2,4632.1,8.502]
[1755072745841,1.4984,4632.2,4632.1,5.177]
[1755072746039,1.4984,4632.2,4632.1,8.502]
[1755072746686,15.9984,4632.2,4632.1,8.502]
[1755072747653,15.9984,4632.2,4632.1,8.5]
[1755072747852,16.19837332,4632.2,4632.1,8.5]
[1755072748795,16.19837332,4632.2,4632.1,5.177]
[1755072748957,16.19837332,4632.2,4632.1,8.5]
[1755072749587,16.19837332,4632.2,4632.1,8.499]
[1755072749896,16.19837332,4632.2,4632.1,5.175]
[1755072750090,0.55,4632.1,4630.8,2.692]
[1755072750259,0.55,4631.5,4630.9,5.175]
[1755072750593,0.55,4631.3,4630.9,5.175]
[1755072750768,15.05,4631.0,4630.9,5.175]
[1755072750952,16.20157332,4631.0,4630.9,5.175]
[1755072751156,16.20157332,4631.0,4630.9,8.497]
[1755072751390,0.55,4630.9,4627.5,0.647366]
[1755072751653,0.55,4630.9,4628.0,5.175]
[1755072751654,0.55,4630.3,4628.0,5.175]
[1755072751875,0.55,4630.1,4628.0,5.175]
[1755072752079,0.55,4629.9,4628.0,5.175]
[1755072752279,0.55,4629.7,4628.0,5.175]
[1755072752486,0.55,4629.5,4628.0,5.175]
[1755072752697,1.5016,4629.4,4628.1,3.323]
[1755072752986,0.55,4629.2,4628.1,3.323]
[1755072753190,0.108,4628.3,4628.1,3.323]
[1755072753378,0.108,4628.3,4628.2,3.322]
[1755072755384,0.108,4628.3,4628.2,11.189]
[1755072755697,0.55,4629.2,4628.2,11.189]
[1755072755999,0.108,4628.7,4628.2,11.3538]
[1755072756498,0.55,4629.2,4628.6,0.108]
[1755072756499,0.108,4629.2,4628.6,0.108]
[1755072756700,0.108,4629.2,4628.7,3.322]
[1755072756902,0.108,4629.2,4628.8,0.343]
[1755072758000,0.108,4629.2,4628.8,0.5078]
[1755072758202,0.4579,4630.5,4628.9,0.1648]
[1755072758511,0.108,4630.2,4629.5,0.108]
[1755072758684,0.108,4630.2,4629.6,3.323]
[1755072759003,0.108,4630.2,4629.7,0.3431]
[1755072760169,0.108,4630.7,4630.0,0.108]
[1755072760369,0.4937,4631.5,4630.1,3.326]
[1755072760601,0.108,4630.9,4630.3,0.108]
[1755072763796,0.108,4630.9,4630.4,3.325]
[1755072764120,0.108,4630.9,4630.5,0.3433]
[1755072765418,0.108,4631.5,4630.8,5.283]
[1755072765618,0.4579,4631.4,4630.9,3.323]
[1755072765848,0.108,4631.1,4630.9,3.323]
[1755072766326,0.4579,4631.0,4630.8,5.175]
[1755072766527,0.108,4631.1,4630.9,3.325]
[1755072766829,0.108,4631.1,4630.8,5.175]
[1755072766830,0.55,4631.0,4630.8,5.175]
[1755072767002,0.55,4631.0,4630.9,3.325]
[1755072767519,0.55,4631.0,4630.8,5.175]
[1755072767816,1.5016,4631.0,4630.9,3.325]
[1755072768207,1.66256,4631.0,4630.8,5.175]
[1755072768412,0.71096,4631.0,4630.9,3.324]
[1755072768599,0.55,4631.0,4630.9,3.324]
[1755072768990,1.5016,4631.0,4630.9,3.324]
[1755072770001,1.70223945,4631.0,4630.9,8.499]
[1755072770206,1.70223945,4631.0,4630.9,5.765]
[1755072771124,1.70229187,4631.0,4628.3,0.001]
[1755072771332,0.108,4629.2,4628.6,0.108]
[1755072771697,0.108,4629.2,4628.7,3.323]
[1755072772301,0.108,4629.6,4628.9,0.108]
[1755072772712,1.0079,4629.5,4628.9,0.108]
[1755072772911,1.5016,4629.5,4629.0,0.891]
[1755072773128,0.55,4629.3,4629.1,0.595]
[1755072773334,0.55,4629.3,4629.2,1.276]
[1755072773535,0.55,4629.7,4629.2,1.276]
[1755072773705,0.108,4629.3,4629.2,1.276]
[1755072774926,1.6096,4629.3,4629.2,1.276]
[1755072775412,1.6096,4629.3,4629.2,9.142]
[1755072775805,1.77056,4629.3,4629.2,7.866]
[1755072776132,1.77056,4629.3,4629.2,11.191]
[1755072777429,1.6096,4629.3,4629.2,11.191]
[1755072780548,1.81062873,4629.3,4629.2,11.191]
[1755072780713,1.5016,4629.3,4629.2,11.191]
[1755072781040,1.6096,4629.3,4629.2,11.191]
[1755072783127,1.81062123,4629.3,4629.2,7.866]
[1755072783340,0.55,4629.2,4628.3,0.001]
[1755072783541,35.78744368,4628.5,4628.4,8.328]
[1755072783864,36.68974368,4628.5,4628.4,8.328]
[1755072784008,36.79774368,4628.5,4628.4,8.328]
[1755072784841,36.79774368,4628.5,4628.4,8.497]
[1755072785043,36.99871339,4628.5,4628.4,8.497]
[1755072785408,36.99871339,4628.5,4628.4,5.176]
[1755072785609,36.99871339,4628.5,4628.4,8.497]
[1755072786043,37.11116794,4628.5,4628.4,8.497]
[1755072786414,36.91019823,4628.5,4628.4,8.497]
[1755072786947,0.55,4628.4,4627.6,0.001]
[1755072787147,35.78744368,4627.8,4627.7,8.498]
[1755072787346,36.68974368,4627.8,4627.7,8.498]
[1755072788219,36.79774368,4627.8,4627.7,8.498]
[1755072789456,0.55,4627.7,4626.8,0.001]
[1755072789751,1.65268661,4627.7,4626.8,0.001]
[1755072789922,0.55,4627.5,4626.8,0.001]
[1755072790117,0.658,4627.0,4626.8,0.001]
[1755072790618,1.5603,4627.0,4626.9,0.358]
[1755072790813,1.71633,4627.0,4626.9,0.358]
[1755072793414,1.91646283,4627.0,4626.9,0.358]
[1755072793925,37.15390651,4627.0,4626.9,0.001]
[1755072794141,37.15390651,4627.0,4626.9,0.984]
[1755072794949,37.15390651,4627.0,4626.9,0.001]
[1755072795255,0.55,4626.9,4625.9,0.001]
[1755072795559,1.65243283,4626.9,4625.9,0.001]
[1755072795854,0.55,4626.1,4624.1,0.001]
[1755072796055,0.658,4625.7,4624.3,0.1648]
[1755072796469,1.5603,4625.7,4625.6,0.339]
[1755072796627,1.93647611,4625.7,4625.6,0.339]
[1755072797728,1.93644589,4625.7,4625.6,0.339]
[1755072798672,0.55,4625.6,4624.1,0.001]
[1755072798828,1.76040261,4625.6,4624.1,0.001]
[1755072799176,0.658,4624.2,4624.1,0.001]
[1755072799926,0.658,4624.2,4624.1,0.432]
[1755072800332,0.658,4624.2,4624.1,0.804]
[1755072801028,1.0911,4624.2,4624.1,0.804]
[1755072801361,36.99781141,4624.2,4624.1,0.804]
[1755072801530,36.79774368,4624.2,4624.1,0.804]
[1755072801731,36.99775667,4624.2,4624.1,0.804]
[1755072803464,36.99767438,4624.2,4624.1,0.804]
[1755072804999,0.8579307,4624.2,4624.1,0.804]
[1755072805346,0.8579307,4624.2,4624.1,5.985]
[1755072810251,0.85833945,4624.2,4624.1,5.985]
[1755072810977,0.55,4624.1,4623.8,0.001]
[1755072811160,0.20035794,4624.0,4623.9,8.504]
[1755072811674,0.30835794,4624.0,4623.9,8.504]
[1755072812456,0.85835794,4624.0,4623.9,8.6688]
[1755072812851,0.30835794,4624.0,4623.9,8.6688]
[1755072813952,0.30835794,4624.0,4623.9,8.504]
[1755072814152,0.20035794,4624.0,4623.9,9.5206]
[1755072815078,0.9267,4625.6,4623.9,4.3386]
[1755072815285,0.108,4624.5,4623.9,3.4311]
[1755072815501,0.108,4624.5,4624.4,5.182]
[1755072815801,0.30887579,4624.5,4624.4,5.182]
[1755072816153,0.30887579,4624.5,4624.4,5.3468]
[1755072816154,0.20087579,4624.5,4624.4,5.3468]
[1755072816382,0.20095815,4624.5,4624.4,5.99058]
[1755072818759,0.20095815,4624.5,4624.4,0.80858]
[1755072818965,0.20095815,4624.5,4624.4,0.2739]
[1755072819184,0.108,4625.2,4624.4,0.2739]
[1755072819381,0.20120142,4625.1,4624.4,0.2739]
[1755072819581,0.20120142,4625.0,4624.4,0.2739]
[1755072819796,0.20120142,4624.9,4624.4,0.2728]
[1755072820044,0.20120142,4624.8,4624.5,0.1648]
[1755072820174,0.20120142,4624.7,4624.5,0.1648]
[1755072820490,0.20120142,4624.6,4624.2,0.1648]
[1755072820665,0.20120142,4624.5,4624.2,0.34879]
[1755072820872,0.108,4625.5,4624.5,0.108]
[1755072821185,0.20124301,4625.4,4624.5,0.108]
[1755072821397,0.20124301,4625.3,4624.5,0.108]
[1755072821601,0.30924301,4625.2,4624.5,0.108]
[1755072821776,0.20124301,4625.1,4624.5,0.108]
[1755072821980,0.20124301,4625.0,4624.5,0.108]
[1755072822176,0.20124301,4624.9,4624.5,0.108]
[1755072822398,0.108,4624.9,4624.3,0.108]
[1755072822701,0.20133476,4624.8,4624.3,0.108]
[1755072822868,0.108,4624.9,4624.3,0.108]
[1755072822869,0.20133476,4624.7,4624.3,0.108]
[1755072823070,0.20133476,4624.6,4624.3,0.108]
[1755072823292,0.20133476,4624.5,4624.3,0.108]
[1755072823495,0.20133476,4624.4,4624.2,0.34879]
[1755072823695,0.20133476,4624.3,4624.2,0.34879]
[1755072824272,0.20133476,4624.3,4624.2,0.51359]
[1755072824475,0.108,4624.9,4624.2,0.51359]
[1755072824683,0.2014116,4624.8,4624.2,0.51359]
[1755072824890,0.2014116,4624.7,4624.2,0.34879]
[1755072825204,0.2014116,4624.6,4624.2,0.34879]
[1755072825376,0.2014116,4624.5,4624.3,2.694]
[1755072825687,0.5454,4624.9,4624.4,5.181]
[1755072825885,1.12815681,4624.8,4624.4,5.181]
[1755072826213,0.20145681,4624.7,4624.5,3.321]
[1755072826382,0.20145681,4624.6,4624.5,3.321]
[1755072828402,0.108,4624.9,4624.5,4.05946007]
[1755072828602,0.20139123,4625.5,4624.6,0.1659]
[1755072828774,0.108,4625.5,4624.8,0.108]
[1755072828977,0.30937079,4625.8,4625.1,0.108]
[1755072829178,0.20137079,4625.7,4625.2,3.321]
[1755072829393,0.20137079,4625.6,4625.2,3.6639]
[1755072829598,0.9267,4625.7,4625.2,3.6639]
[1755072829795,0.20134116,4625.6,4625.2,3.6639]
[1755072830006,1.12804179,4625.5,4625.2,3.6639]
[1755072830172,0.9267,4625.4,4625.2,3.321]
[1755072830378,0.20134179,4625.7,4625.2,3.321]
[1755072830578,0.9267,4625.3,4625.2,3.321]
[1755072831014,0.108,4625.4,4625.2,3.321]
[1755072831305,0.108,4625.4,4625.2,4.001]
[1755072832806,1.0347,4625.4,4625.2,4.001]
[1755072833390,0.108,4625.4,4625.2,4.001]
[1755072834410,0.108,4625.8,4625.2,4.4011]
[1755072835187,0.108,4625.8,4625.2,4.001]
[1755072835510,0.9267,4625.7,4625.5,5.18]
[1755072835692,0.9267,4625.6,4625.5,5.18]
[1755072835887,1.5847,4625.6,4625.5,5.18]
[1755072836092,1.74337,4625.6,4625.5,5.18]
[1755072836311,0.108,4625.6,4625.5,5.18]
[1755072842129,0.108,4625.6,4625.5,8.501]
[1755072847931,0.002,4625.9,4625.5,8.501]
[1755072848131,0.108,4625.8,4625.5,8.501]
[1755072848433,0.108,4625.8,4625.6,0.1659]
[1755072848613,0.108,4625.8,4625.7,4.35259]
[1755072848811,0.002,4625.9,4625.7,4.35259]
[1755072849009,0.002,4625.9,4625.8,0.1659]
[1755072849811,0.002,4625.9,4625.7,3.428]
[1755072850229,0.002,4625.9,4625.7,3.5928]
[1755072851136,0.002,4625.9,4625.7,3.428]
[1755072851305,0.002,4625.9,4625.8,0.1659]
[1755072851505,0.002,4625.9,4625.8,0.52529]
[1755072851932,0.002,4625.9,4625.8,0.35939]
[1755072852433,0.002,4625.9,4625.8,3.32]
[1755072854952,0.002,4625.9,4625.7,0.108]
[1755072855128,0.002,4625.9,4625.8,3.32]
[1755072855316,0.002,4625.9,4625.8,11.192]
[1755072857213,0.002,4625.9,4625.8,7.872]
[1755072857426,0.9267,4625.9,4625.8,11.191]
[1755072858637,0.9267,4625.9,4625.8,8.498]
[1755072859455,0.9267,4625.9,4625.5,0.108]
[1755072859656,0.9247,4625.8,4625.6,3.319]
[1755072859952,0.9247,4625.7,4625.6,3.319]
[1755072862138,0.9247,4625.7,4625.5,0.108]
[1755072862456,0.002,4625.9,4625.6,3.319]
[1755072862750,0.9267,4625.9,4625.7,3.319]
[1755072863064,0.9247,4625.8,4625.5,0.108]
[1755072863367,0.9247,4625.8,4625.6,3.319]
[1755072863512,0.002,4625.9,4625.6,3.319]
[1755072863715,0.002,4625.9,4625.3,0.108]
[1755072863716,0.9247,4625.8,4625.3,0.108]
[1755072863912,0.9247,4625.7,4625.4,3.319]
[1755072864137,0.9247,4625.6,4625.4,3.319]
[1755072864343,0.9247,4625.5,4625.4,3.319]
[1755072865413,0.108,4625.8,4625.4,11.191]
[1755072865617,1.0327,4625.8,4625.4,11.191]
[1755072865861,15.5327,4625.8,4625.4,11.191]
[1755072866019,0.9247,4625.7,4625.4,11.191]
[1755072866220,0.9247,4625.6,4625.4,11.191]
[1755072866720,0.9247,4625.5,4625.4,11.191]
[1755072868458,0.9247,4625.5,4625.4,8.498]
[1755072868817,0.9247,4625.5,4625.4,3.319]
[1755072875457,0.9247,4625.5,4625.4,7.872]
[1755072875753,0.9247,4625.5,4625.4,11.191]
[1755072877656,0.9247,4625.5,4625.4,7.872]
[1755072877872,0.9247,4625.5,4625.4,11.191]
[1755072879749,0.9247,4625.5,4625.4,8.498]
[1755072880465,15.0521,4625.8,4625.4,5.179]
[1755072880651,0.9083,4625.7,4625.4,8.498]
[1755072881043,0.9083,4625.6,4625.4,8.498]
[1755072882169,0.108,4625.8,4625.4,8.498]
[1755072882663,0.108,4625.8,4625.4,3.319]
[1755072883167,1.0163,4625.8,4625.5,3.318]
[1755072883544,0.002,4625.9,4625.2,0.68]
[1755072883871,0.9103,4625.9,4625.3,3.426]
[1755072884272,0.002,4625.9,4625.3,3.426]
[1755072885251,0.002,4625.9,4625.3,3.85308]
[1755072885452,0.002,4625.9,4625.8,5.18]
[1755072885672,0.002,4625.9,4625.8,8.498]
[1755072888976,0.9103,4625.9,4625.8,8.498]
[1755072890147,0.002,4625.9,4625.8,8.498]
[1755072891253,0.002,4625.9,4625.8,4.1678]
[1755072891455,0.002,4625.9,4625.8,3.318]
[1755072891767,0.002,4625.9,4625.8,3.5919]
[1755072892668,0.002,4625.9,4625.8,3.5908]
[1755072894259,0.002,4625.9,4625.8,3.426]
[1755072894749,0.002,4625.9,4625.8,3.425]
[1755072894957,0.002,4625.9,4625.8,3.7783]
[1755072895452,0.002,4625.9,4625.8,11.8151]
[1755072895653,0.002,4625.9,4625.8,11.8451]
[1755072896946,0.002,4625.9,4625.8,9.1532]
[1755072897174,0.002,4625.9,4625.8,9.44224334]
[1755072897361,0.002,4625.9,4625.8,4.81324334]
[1755072897763,0.002,4626.4,4625.9,0.028]
[1755072897947,0.002,4626.4,4626.0,3.71422]
[1755072898143,0.002,4626.4,4626.3,0.108]
[1755072898344,0.002,4626.4,4626.3,3.425]
[1755072898549,0.002,4626.4,4626.3,3.5909]
[1755072898758,0.002,4626.4,4626.3,3.455]
[1755072898976,0.002,4626.4,4626.3,3.8488557]
[1755072899564,0.002,4626.4,4626.3,4.0147557]
[1755072900602,0.002,4626.4,4626.3,4.30269904]
[1755072900753,0.002,4626.4,4626.3,4.0147557]
[1755072900956,0.002,4626.4,4626.3,4.0126557]
[1755072901153,0.002,4626.4,4626.3,4.0137557]
[1755072901404,0.002,4626.4,4626.3,4.0126557]
[1755072901696,0.002,4626.4,4626.3,4.0137557]
[1755072902208,0.002,4626.4,4626.3,4.85279904]
[1755072902352,0.002,4626.4,4626.3,27.39276604]
[1755072902552,0.002,4626.4,4626.3,8.55677804]
[1755072902757,0.002,4626.4,4626.3,0.6977557]
[1755072902957,0.002,4626.4,4626.3,3.6199]
[1755072903594,0.002,4626.4,4626.3,18.72290818]
[1755072903798,0.002,4626.8,4626.3,18.72290818]
[1755072903799,0.002,4626.8,4626.4,0.83904334]
[1755072903967,0.002,4626.8,4626.6,0.55]
[1755072904168,0.002,4626.8,4626.7,9.0955]
[1755072904371,0.002,4626.8,4626.7,10.28254433]
[1755072904621,0.002,4626.8,4626.7,5.09494433]
[1755072904903,0.002,4626.8,4626.7,3.424]
[1755072905265,0.002,4626.8,4626.7,6.116]
[1755072905496,0.002,4626.8,4626.7,11.293]
[1755072906776,0.002,4626.8,4626.7,5.285]
[1755072906969,0.002,4626.8,4626.7,8.6]
[1755072907170,0.002,4626.8,4626.7,9.46]
[1755072907965,0.002,4626.8,4626.7,4.283]
[1755072908196,0.9583,4626.8,4626.7,3.423]
[1755072908596,0.002,4626.8,4626.7,3.423]
[1755072909402,0.9583,4626.8,4626.7,3.423]
[1755072909700,0.9583,4626.8,4626.7,0.108]
[1755072910068,0.9583,4626.8,4626.7,3.423]
[1755072910269,0.9583,4626.8,4626.7,0.108]
[1755072910691,0.9583,4626.8,4626.7,3.315]
[1755072912866,0.9583,4626.8,4626.5,0.108]
[1755072913190,0.9563,4626.7,4626.5,0.108]
[1755072913373,0.9563,4626.7,4626.6,3.315]
[1755072913561,0.002,4626.8,4626.6,3.315]
[1755072913972,0.002,4626.8,4626.7,3.315]
[1755072914760,0.9583,4626.8,4626.7,3.315]
[1755072915192,17.09090774,4626.8,4626.5,0.04404545]
[1755072915368,16.13460774,4626.8,4626.7,5.177]
[1755072916085,18.61953152,4626.8,4626.7,5.177]
[1755072916401,17.74890774,4626.8,4626.7,8.492]
[1755072918994,17.74890774,4626.8,4626.3,0.03]
[1755072918995,0.55,4626.7,4626.3,0.03]
[1755072919294,1.5063,4626.7,4626.4,3.315]
[1755072919470,0.55,4626.7,4626.4,3.315]
[1755072919669,0.4949,4626.6,4626.4,3.315]
[1755072919880,0.9563,4626.6,4626.4,3.315]
[1755072920284,0.9563,4626.5,4626.4,3.315]
[1755072922113,1.5063,4626.5,4626.4,3.315]
[1755072922443,1.6143,4626.5,4626.4,3.315]
[1755072923286,0.55,4626.4,4626.3,0.03]
[1755072923486,1.5063,4626.4,4626.3,3.345]
[1755072924198,1.66773,4626.4,4626.3,3.345]
[1755072925297,1.66773,4626.4,4626.3,8.523]
[1755072927401,4.25858048,4626.4,4626.3,0.03]
[1755072927612,4.25858048,4626.4,4626.3,5.209]
[1755072927799,4.45952362,4626.4,4626.3,8.524]
[1755072928001,4.45952362,4626.4,4626.3,5.179]
[1755072928738,4.45953013,4626.4,4626.3,5.179]
[1755072929037,4.25858048,4626.4,4626.3,5.179]
[1755072929231,4.45941344,4626.4,4626.3,8.494]
[1755072931002,4.45923225,4626.4,4626.3,8.494]
[1755072931694,4.45916569,4626.4,4626.3,8.494]
[1755072934698,4.45916569,4626.4,4626.3,5.18]
[1755072936622,4.45916569,4626.4,4625.8,0.001]
[1755072936796,19.3822833,4625.9,4625.8,0.001]
[1755072937127,19.58286851,4625.9,4625.8,0.001]
[1755072937422,20.50516851,4625.9,4625.8,0.321]
[1755072937920,20.5053244,4625.9,4625.8,1.061]
[1755072939909,20.5053244,4625.9,4625.8,1.795]
[1755072940294,20.50538971,4625.9,4625.8,1.795]
[1755072941126,35.00538971,4625.9,4625.8,1.795]
[1755072944120,35.00548048,4625.9,4625.8,1.795]
[1755072944296,0.55,4625.8,4625.4,0.001]
[1755072944496,0.55,4625.4,4624.1,0.1658]
[1755072944724,16.79060774,4624.6,4621.9,0.10944173]
[1755072944898,16.79060774,4624.6,4622.1,0.23748313]
[1755072944899,16.13260774,4623.7,4622.1,0.23748313]
[1755072945233,16.13260774,4623.2,4622.1,0.23748313]
[1755072945521,16.13260774,4623.2,4623.1,11.299]
[1755072945710,16.13260774,4623.2,4623.1,2.694]
[1755072946028,16.13260774,4623.2,4621.8,0.28904334]
[1755072946399,16.13260774,4623.2,4623.0,0.108]
[1755072946602,16.13260774,4623.2,4621.9,0.10706407]
[1755072946803,16.13260774,4623.2,4622.9,0.108]
[1755072947326,16.13260774,4623.2,4623.0,3.315]
[1755072947651,16.13260774,4623.2,4623.1,0.3423]
[1755072949432,16.13260774,4623.2,4623.0,3.315]
[1755072955333,16.13260774,4623.2,4623.1,7.876]
[1755072958241,16.13260774,4623.2,4623.1,5.182]
[1755072959728,16.33465854,4623.2,4623.1,5.182]
[1755072959923,16.33465854,4623.2,4623.0,3.315]
[1755072960149,16.33465854,4623.2,4622.7,0.109]
[1755072960150,16.13260774,4623.2,4622.7,0.001]
[1755072960341,16.57860774,4623.2,4622.7,0.001]
[1755072960629,16.13260774,4623.2,4622.7,0.001]
[1755072961143,16.68260774,4623.2,4623.1,0.73]
[1755072961331,16.88467742,4623.2,4623.1,0.73]
[1755072961531,16.88467742,4623.2,4623.1,4.044]
[1755072962171,16.68260774,4623.2,4623.1,4.044]
[1755072964159,16.68460774,4623.2,4623.1,4.044]
[1755072965345,16.68460774,4623.2,4623.1,11.921]
[1755072966232,17.60220774,4623.2,4623.1,11.921]
[1755072966539,16.68460774,4623.2,4623.1,11.921]
[1755072967959,16.68460774,4623.2,4623.1,9.226]
[1755072968855,17.13060774,4623.2,4623.1,9.226]
[1755072970197,17.60220774,4623.2,4623.1,4.044]
[1755072970367,19.80876342,4623.2,4623.1,0.73]
[1755072970668,19.80876342,4623.2,4623.0,0.001]
[1755072970669,0.55,4623.1,4623.0,0.001]
[1755072970836,1.4676,4623.1,4623.0,3.315]
[1755072972242,0.55,4623.1,4623.0,3.315]
[1755072972565,0.002,4623.2,4623.0,3.315]
[1755072972862,0.002,4623.2,4623.1,0.3315]
[1755072973036,0.002,4623.2,4623.0,3.315]
[1755072974358,0.002,4623.2,4623.1,0.108]
[1755072975450,0.002,4623.2,4623.1,7.985]
[1755072977038,0.002,4623.2,4623.1,11.298]
[1755072979176,0.002,4623.2,4623.1,8.603]
[1755072979474,0.002,4623.2,4623.1,9.4634]
[1755072979642,0.002,4623.2,4623.1,0.108]
[1755072979843,0.9196,4623.2,4623.1,3.313]
[1755072981363,0.9196,4623.2,4623.1,3.312]
[1755072981763,0.9196,4623.2,4623.0,0.001]
[1755072981944,0.552,4623.2,4623.1,3.312]
[1755072982347,0.55,4623.1,4623.0,0.001]
[1755072982541,1.4676,4623.1,4623.0,3.313]
[1755072983876,1.4676,4623.1,4623.0,0.001]
[1755072984045,1.4676,4623.1,4623.0,3.313]
[1755072984573,15.9676,4623.1,4623.0,3.313]
[1755072984775,17.29996301,4623.1,4623.0,3.313]
[1755072985446,14.608,4623.1,4623.0,11.23]
[1755072985869,0.002,4623.2,4623.0,11.23]
[1755072986103,0.002,4623.2,4623.1,0.001]
[1755072986390,0.002,4623.2,4623.1,0.109]
[1755072986592,0.002,4623.2,4623.1,1.0134]
[1755072989664,0.002,4623.2,4623.1,0.149]
[1755072990267,0.002,4623.2,4623.1,0.041]
[1755072990605,0.4346,4623.2,4623.1,0.041]
[1755072990768,0.9182,4623.2,4623.1,0.041]
[1755072991406,1.4682,4623.2,4623.1,3.353]
[1755072993193,0.002,4623.2,4623.1,3.353]
[1755072993494,0.002,4623.2,4623.1,3.6884]
[1755072993873,0.002,4623.2,4623.1,3.7964]
[1755072995403,0.002,4623.2,4623.1,11.6734]
[1755072999887,0.4346,4623.2,4623.1,11.6734]
[1755073000116,0.9182,4623.2,4623.1,11.337]
[1755073000721,0.9182,4623.2,4623.1,8.534]
[1755073000900,0.9182,4623.2,4623.1,3.352]
[1755073001929,1.4682,4623.2,4623.1,3.352]
[1755073002941,0.9182,4623.2,4623.1,3.352]
[1755073003093,0.002,4623.2,4623.1,3.6873]
[1755073005009,0.002,4623.2,4623.1,3.7953]
[1755073005530,0.002,4623.2,4623.1,11.6713]
[1755073006093,0.002,4623.2,4623.1,9.26634334]
[1755073006324,0.002,4623.2,4623.1,8.9773]
[1755073007794,0.002,4623.2,4623.1,3.7953]
[1755073014503,0.002,4623.2,4623.1,3.7933]
[1755073014702,0.9182,4623.2,4623.1,3.458]
[1755073015429,0.9182,4623.2,4623.1,11.333]
[1755073018930,0.9182,4623.2,4623.1,8.639]
[1755073019136,0.9182,4623.2,4623.1,3.458]
[1755073024324,0.002,4623.2,4623.1,3.35]
[1755073024511,0.002,4623.2,4623.1,3.7931]
[1755073025135,0.9386,4623.2,4623.1,3.7921]
[1755073025331,0.9386,4623.2,4623.1,11.333]
[1755073025721,0.9386,4623.2,4623.1,11.334]
[1755073027344,0.9386,4623.2,4623.1,11.333]
[1755073029308,0.9386,4623.2,4623.1,8.639]
[1755073031508,0.9386,4623.2,4623.1,3.457]
[1755073035425,0.9386,4623.2,4623.1,11.333]